bitfinex/quotes_BTCUSD_20240605
["timestamp","ask_amount","ask_price","bid_price","bid_amount"]
[1717579031830,0.0126919,70952.0,70951.0,0.42472797]
[1717579032037,0.00086,70952.0,70951.0,0.42472797]
[1717579033130,0.00086,70952.0,70951.0,0.88835119]
[1717579033371,0.00086,70952.0,70951.0,0.89053573]
[1717579033573,0.00086,70952.0,70951.0,0.88835119]
[1717579033913,0.00086,70952.0,70951.0,0.89053573]
[1717579034260,0.00086,70952.0,70951.0,0.93265629]
[1717579034484,0.00086,70952.0,70951.0,0.94165629]
[1717579034908,0.00086,70952.0,70951.0,0.93265629]
[1717579035165,0.00086,70952.0,70951.0,0.94165629]
[1717579035373,0.00086,70952.0,70951.0,1.31141973]
[1717579035643,0.00086,70952.0,70951.0,1.30241973]
[1717579035770,0.00086,70952.0,70951.0,1.31141973]
[1717579035971,0.00186,70952.0,70951.0,1.32441973]
[1717579036834,0.00186,70952.0,70951.0,1.33489944]
[1717579037003,0.00086,70952.0,70951.0,1.32589944]
[1717579037196,0.00186,70952.0,70951.0,1.33989944]
[1717579037958,0.00186,70952.0,70951.0,1.3247149]
[1717579038144,0.00186,70952.0,70951.0,1.32689944]
[1717579038379,0.00186,70952.0,70951.0,1.34089944]
[1717579039560,0.00186,70952.0,70951.0,1.40406961]
[1717579040040,0.00186,70952.0,70951.0,1.34089944]
[1717579040239,0.00186,70952.0,70951.0,1.40406961]
[1717579040699,0.00186,70952.0,70951.0,1.42060696]
[1717579041349,0.00186,70952.0,70951.0,1.41842242]
[1717579041546,0.00186,70952.0,70951.0,1.42060696]
[1717579041749,0.00186,70952.0,70951.0,1.41842242]
[1717579043531,0.07222824,70961.0,70960.0,0.42467397]
[1717579043664,0.0808,70962.0,70960.0,0.42467397]
[1717579043665,0.0808,70962.0,70961.0,0.422766]
[1717579044270,0.0808,70962.0,70961.0,0.197317]
[1717579044675,0.0808,70962.0,70961.0,0.48106297]
[1717579045271,0.0808,70962.0,70961.0,0.48406297]
[1717579045975,0.0808,70962.0,70961.0,0.48706297]
[1717579047500,0.0808,70962.0,70961.0,0.20521897]
[1717579048939,0.0808,70962.0,70961.0,0.203317]
[1717579051259,0.0808,70962.0,70961.0,0.20521897]
[1717579052456,0.0808,70962.0,70961.0,0.48706297]
[1717579052659,0.1538,70963.0,70962.0,0.14282197]
[1717579052994,0.1538,70963.0,70962.0,0.42466197]
[1717579053510,0.00086,70967.0,70966.0,0.14281397]
[1717579053685,0.00086,70967.0,70966.0,0.5690579]
[1717579053888,0.00086,70967.0,70966.0,0.5920579]
[1717579054090,0.00086,70967.0,70966.0,0.8738829]
[1717579054494,0.01277115,70967.0,70966.0,0.8738829]
[1717579054695,0.00086,70967.0,70966.0,0.8738829]
[1717579054896,0.00086,70967.0,70966.0,0.87198093]
[1717579055300,0.01277115,70967.0,70966.0,0.95632358]
[1717579055502,0.00086,70967.0,70966.0,0.8868829]
[1717579055704,0.00186,70967.0,70966.0,0.8998829]
[1717579057290,0.00186,70967.0,70966.0,0.96311978]
[1717579057702,0.00186,70967.0,70966.0,0.96311985]
[1717579057953,0.00186,70967.0,70966.0,0.96121788]
[1717579058197,0.00186,70967.0,70966.0,0.96311985]
[1717579059288,0.00186,70967.0,70966.0,0.8998829]
[1717579062195,0.00186,70967.0,70966.0,0.94202121]
[1717579064118,0.00186,70967.0,70966.0,0.8998829]
[1717579065215,0.00186,70967.0,70966.0,0.94201578]
[1717579071168,0.00186,70967.0,70966.0,0.8998829]
[1717579075432,0.07786,70967.0,70966.0,0.8998829]
[1717579076248,0.07786,70967.0,70966.0,0.96311985]
[1717579076581,0.24406,70967.0,70966.0,0.51197395]
[1717579076885,0.47191718,70967.0,70966.0,0.448737]
[1717579077301,0.45381915,70967.0,70966.0,0.448737]
[1717579077566,0.47191718,70967.0,70966.0,0.166912]
[1717579078121,0.47191718,70967.0,70966.0,0.153912]
[1717579078325,0.47091718,70967.0,70966.0,0.146912]
[1717579078525,0.25600369,70967.0,70966.0,0.152912]
[1717579078744,0.25600369,70967.0,70966.0,0.146912]
[1717579078745,0.45381915,70967.0,70966.0,0.146912]
[1717579078941,0.47191718,70967.0,70966.0,0.147912]
[1717579079948,0.47091718,70967.0,70966.0,0.141912]
[1717579080153,0.47091718,70967.0,70966.0,0.142912]
[1717579080357,0.25500369,70967.0,70966.0,0.142912]
[1717579084112,0.45281915,70967.0,70966.0,0.142912]
[1717579085768,0.47091718,70967.0,70966.0,0.142912]
[1717579087579,0.57091718,70967.0,70966.0,0.002]
[1717579088818,0.71182718,70967.0,70966.0,0.001]
[1717579088962,0.1,70962.0,70961.0,0.056395]
[1717579089161,0.55821349,70962.0,70961.0,0.07071529]
[1717579089427,0.57017388,70962.0,70961.0,0.07071529]
[1717579090120,0.57117388,70962.0,70961.0,0.07071529]
[1717579090684,0.57017388,70962.0,70961.0,0.07071529]
[1717579090900,0.57217388,70962.0,70961.0,0.07071529]
[1717579091325,0.57317388,70962.0,70961.0,0.07071529]
[1717579091852,0.55507585,70962.0,70961.0,0.01432029]
[1717579092264,0.35726039,70962.0,70961.0,0.01432029]
[1717579092641,0.55507585,70962.0,70961.0,0.01432029]
[1717579092850,0.1793,70961.0,70960.0,0.056398]
[1717579093224,0.191256,70961.0,70960.0,0.056398]
[1717579094051,0.192256,70961.0,70960.0,0.056398]
[1717579094454,0.193256,70961.0,70960.0,0.056398]
[1717579094875,0.39107146,70961.0,70960.0,0.056398]
[1717579095744,0.193256,70961.0,70960.0,0.056398]
[1717579095927,0.39107146,70961.0,70960.0,0.056398]
[1717579097227,0.40916949,70961.0,70960.0,0.056398]
[1717579097425,0.56686949,70961.0,70960.0,0.056398]
[1717579098696,0.54877146,70961.0,70960.0,0.056398]
[1717579099039,0.56686949,70961.0,70960.0,0.056398]
[1717579100770,0.56686949,70961.0,70952.0,0.000946]
[1717579100771,0.56686949,70961.0,70955.0,0.140933]
[1717579101066,0.45261349,70956.0,70955.0,0.01432029]
[1717579101469,0.44644469,70956.0,70955.0,0.07072229]
[1717579101669,0.46454272,70956.0,70955.0,0.07072229]
[1717579102066,0.46454272,70956.0,70955.0,0.07572229]
[1717579102294,0.46454272,70956.0,70955.0,0.08072229]
[1717579102426,0.46454272,70956.0,70955.0,0.07072229]
[1717579102835,0.46454272,70956.0,70955.0,0.07572229]
[1717579103865,0.46454272,70956.0,70955.0,0.08072229]
[1717579105939,0.46454272,70956.0,70955.0,0.066402]
[1717579106374,0.46454272,70956.0,70955.0,0.01]
[1717579106575,0.56454272,70956.0,70955.0,0.01]
[1717579110383,0.70547472,70956.0,70955.0,0.01]
[1717579111146,0.1,70953.0,70952.0,0.000946]
[1717579111398,0.54291349,70953.0,70952.0,0.01526629]
[1717579111649,0.55480209,70953.0,70952.0,0.000946]
[1717579112265,0.55480209,70953.0,70952.0,0.005946]
[1717579114770,0.55480209,70953.0,70952.0,0.010946]
[1717579118910,0.53670406,70953.0,70952.0,0.010946]
[1717579119941,0.3388886,70953.0,70952.0,0.010946]
[1717579120142,0.53670406,70953.0,70952.0,0.010946]
[1717579120328,0.55480209,70953.0,70952.0,0.010946]
[1717579120922,0.53670406,70953.0,70952.0,0.010946]
[1717579121336,0.3388886,70953.0,70952.0,0.010946]
[1717579121590,0.53670406,70953.0,70952.0,0.010946]
[1717579122885,0.3388886,70953.0,70952.0,0.010946]
[1717579123096,0.53670406,70953.0,70952.0,0.010946]
[1717579125355,0.0118886,70953.0,70952.0,0.040946]
[1717579125864,0.10086,70956.0,70953.0,0.140936]
[1717579126060,0.00086,70956.0,70954.0,0.140936]
[1717579126607,0.00086,70956.0,70955.0,0.140934]
[1717579126818,0.00086,70956.0,70955.0,0.21195626]
[1717579128017,0.00086,70956.0,70955.0,0.25413476]
[1717579128195,0.00086,70956.0,70955.0,0.39855369]
[1717579128393,0.00086,70956.0,70955.0,0.37937519]
[1717579128614,0.00086,70956.0,70955.0,0.44364816]
[1717579128861,0.00086,70956.0,70955.0,0.44464816]
[1717579129758,0.00086,70956.0,70955.0,0.44465251]
[1717579130139,0.00086,70956.0,70955.0,0.44365251]
[1717579130346,0.00086,70956.0,70955.0,0.45065251]
[1717579130541,0.00086,70956.0,70955.0,0.45965251]
[1717579131149,0.00086,70956.0,70955.0,0.74152051]
[1717579131729,0.00086,70956.0,70955.0,0.72720022]
[1717579132301,0.00086,70956.0,70955.0,0.6639229]
[1717579132846,1e-08,70956.0,70955.0,0.6639229]
[1717579135089,1e-08,70956.0,70955.0,0.7693748]
[1717579135316,1e-08,70956.0,70955.0,1.05342741]
[1717579135831,1e-08,70956.0,70955.0,0.94797544]
[1717579136836,1e-08,70956.0,70955.0,0.93997544]
[1717579137037,1e-08,70956.0,70955.0,0.93097544]
[1717579137407,1e-08,70956.0,70955.0,0.93997544]
[1717579137668,1e-08,70956.0,70955.0,0.94997544]
[1717579138019,1e-08,70956.0,70955.0,0.93997544]
[1717579138228,1e-08,70956.0,70955.0,1.0483868]
[1717579138440,1e-08,70956.0,70955.0,0.94297544]
[1717579138656,1e-08,70956.0,70955.0,0.95297544]
[1717579139143,1e-08,70956.0,70955.0,1.04637732]
[1717579139352,1e-08,70956.0,70955.0,1.05937732]
[1717579139937,1e-08,70956.0,70955.0,1.04937732]
[1717579140469,1e-08,70956.0,70955.0,1.06137732]
[1717579140884,1e-08,70956.0,70955.0,1.05597544]
[1717579141031,1e-08,70956.0,70955.0,1.0537909]
[1717579141238,1e-08,70956.0,70955.0,1.15918372]
[1717579141630,1e-08,70956.0,70955.0,1.0417909]
[1717579141826,1e-08,70956.0,70955.0,1.0287909]
[1717579142266,1e-08,70956.0,70955.0,1.0427909]
[1717579143275,1e-08,70956.0,70955.0,1.14008677]
[1717579146720,1e-08,70956.0,70955.0,1.0557909]
[1717579149171,1e-08,70956.0,70955.0,1.05797544]
[1717579149388,1e-08,70956.0,70955.0,1.0557909]
[1717579149595,1e-08,70956.0,70955.0,1.05797544]
[1717579149765,0.00086,70967.0,70966.0,0.42463897]
[1717579149982,0.01332596,70967.0,70966.0,0.6220579]
[1717579150187,0.00086,70967.0,70966.0,0.7135579]
[1717579150387,0.00086,70967.0,70966.0,0.75568605]
[1717579150639,0.00086,70967.0,70966.0,1.0953829]
[1717579150843,0.00086,70967.0,70966.0,1.09756744]
[1717579151201,0.00086,70967.0,70966.0,1.10256744]
[1717579151604,0.00086,70967.0,70966.0,1.09756744]
[1717579151769,0.00086,70967.0,70966.0,1.11156744]
[1717579152176,0.00086,70967.0,70966.0,1.15367181]
[1717579152806,0.00086,70967.0,70966.0,1.16267181]
[1717579153412,0.00086,70967.0,70966.0,1.15367181]
[1717579153607,0.00086,70967.0,70966.0,1.12456744]
[1717579154227,0.00086,70967.0,70966.0,1.16666281]
[1717579154427,0.00086,70967.0,70966.0,1.12456744]
[1717579155027,0.00086,70967.0,70966.0,1.22988782]
[1717579155779,0.00086,70967.0,70966.0,1.21588782]
[1717579155932,0.00086,70967.0,70966.0,1.20288782]
[1717579156132,0.00086,70967.0,70966.0,1.11156744]
[1717579156561,0.00086,70967.0,70966.0,1.30156744]
[1717579157073,0.00086,70967.0,70966.0,1.31556744]
[1717579157476,0.00086,70967.0,70966.0,1.59739244]
[1717579159387,0.00086,70967.0,70966.0,1.68151836]
[1717579159634,0.00086,70967.0,70966.0,1.69739244]
[1717579159856,0.07422824,70989.0,70983.0,0.42453697]
[1717579159857,0.236,70984.0,70983.0,0.42453697]
[1717579160093,0.236,70984.0,70983.0,0.58327619]
[1717579160339,0.24865126,70984.0,70983.0,0.64997619]
[1717579160551,0.002,70989.0,70988.0,0.140868]
[1717579160769,0.002,70989.0,70988.0,0.6356259]
[1717579160973,0.2413,70989.0,70988.0,0.6356259]
[1717579166044,0.2413,70989.0,70988.0,0.63372393]
[1717579166255,0.2413,70989.0,70988.0,0.69009593]
[1717579166456,0.2413,70989.0,70988.0,0.62339593]
[1717579166618,0.2413,70989.0,70988.0,0.19724]
[1717579166817,0.2413,70989.0,70988.0,0.26394]
[1717579167387,0.43911546,70989.0,70988.0,0.26394]
[1717579167710,0.2413,70989.0,70988.0,0.26394]
[1717579173485,0.25400677,70989.0,70988.0,0.26394]
[1717579174410,0.25400677,70989.0,70988.0,0.545677]
[1717579175571,0.25400677,70989.0,70988.0,0.54757897]
[1717579177048,0.25400677,70989.0,70988.0,0.478977]
[1717579177269,0.25400677,70989.0,70988.0,0.545677]
[1717579177472,0.25400677,70989.0,70988.0,0.6919979]
[1717579177675,0.25400677,70989.0,70988.0,0.69009593]
[1717579178274,0.25400677,70989.0,70988.0,0.6919979]
[1717579178499,0.2413,70989.0,70988.0,0.6919979]
[1717579178676,0.2413,70989.0,70988.0,0.6989979]
[1717579179035,0.17600039,70989.0,70988.0,0.7069979]
[1717579179266,0.07222824,71008.0,70999.0,0.01]
[1717579179433,0.08222824,71008.0,70997.0,0.15085]
[1717579179635,0.150833,71006.0,70997.0,0.14085]
[1717579179843,0.07222824,71008.0,70994.0,0.0767]
[1717579179844,0.07222824,71000.0,70995.0,0.140854]
[1717579180194,0.07222824,71000.0,70996.0,0.150852]
[1717579180399,0.07222824,71000.0,70997.0,0.01]
[1717579180595,0.07222824,71000.0,70996.0,0.150852]
[1717579180826,0.07222824,71000.0,70999.0,0.01]
[1717579181358,0.140836,71005.0,71000.0,0.01]
[1717579181762,0.001,71007.0,71002.0,0.01]
[1717579182099,0.1663,71006.0,71002.0,0.01]
[1717579182297,0.1663,71004.0,71002.0,0.01]
[1717579182507,0.2481,71003.0,71002.0,0.01]
[1717579183344,0.2481,71003.0,71002.0,0.011]
[1717579183545,0.2481,71003.0,71002.0,0.001]
[1717579184710,0.2347,71005.0,71000.0,0.01]
[1717579184914,0.2347,71003.0,71002.0,0.001]
[1717579185143,0.2347,71003.0,71002.0,0.002]
[1717579185144,0.2357,71003.0,71002.0,0.002]
[1717579186605,0.2357,71003.0,71002.0,0.001]
[1717579186835,0.24638759,71003.0,71002.0,0.001]
[1717579187719,0.24638759,71003.0,71002.0,0.002]
[1717579198202,0.38722659,71003.0,71002.0,0.002]
[1717579198701,0.24638759,71003.0,71002.0,0.002]
[1717579204129,0.39722659,71003.0,71002.0,0.002]
[1717579204346,0.60834552,71003.0,71002.0,0.002]
[1717579206489,0.60834552,71003.0,71002.0,0.001]
[1717579206701,0.55064552,71003.0,71002.0,0.002]
[1717579206925,0.61734552,71003.0,71002.0,0.002]
[1717579207153,0.61634552,71003.0,71002.0,0.001]
[1717579207356,0.62634552,71003.0,71002.0,0.002]
[1717579210640,0.61634552,71003.0,71002.0,0.002]
[1717579210821,0.62634552,71003.0,71002.0,0.002]
[1717579215814,0.62634552,71003.0,71002.0,0.002946]
[1717579221948,0.55964552,71003.0,71002.0,0.002946]
[1717579222153,0.62634552,71003.0,71002.0,0.002946]
[1717579223034,0.54964552,71003.0,71002.0,0.002946]
[1717579223273,0.62634552,71003.0,71002.0,0.002946]
[1717579224536,0.61634552,71003.0,71002.0,0.002946]
[1717579226615,0.02968759,71003.0,71002.0,0.002946]
[1717579226865,0.02968759,71003.0,71002.0,0.096046]
[1717579227233,0.019,71003.0,71002.0,0.079646]
[1717579227614,0.140831,71007.0,71005.0,0.01]
[1717579227822,0.140831,71007.0,71003.0,0.01]
[1717579228762,0.140831,71007.0,71004.0,0.01]
[1717579228966,0.140831,71007.0,71003.0,0.01]
[1717579229389,0.140831,71007.0,71004.0,0.01]
[1717579229590,0.149831,71007.0,71005.0,0.001]
[1717579229799,0.157831,71007.0,71005.0,0.001]
[1717579230200,0.148831,71007.0,71004.0,0.01]
[1717579230400,0.149831,71007.0,71004.0,0.01]
[1717579230961,0.148831,71007.0,71005.0,0.001]
[1717579231133,0.148831,71007.0,71004.0,0.01]
[1717579231367,0.157831,71007.0,71005.0,0.011]
[1717579231954,0.165831,71007.0,71005.0,0.011]
[1717579232167,0.165831,71007.0,71005.0,0.001]
[1717579232584,0.156831,71007.0,71004.0,0.011]
[1717579232938,0.165831,71007.0,71004.0,0.012]
[1717579233147,0.149831,71007.0,71005.0,0.01]
[1717579233349,0.00585685,71006.0,71005.0,0.01]
[1717579234277,0.00585685,71006.0,71005.0,0.011]
[1717579234903,0.00585685,71006.0,71005.0,0.001]
[1717579235672,0.00585685,71006.0,71004.0,0.01]
[1717579236086,0.01485685,71006.0,71005.0,0.001]
[1717579236486,0.01385685,71006.0,71005.0,0.001]
[1717579237005,0.01485685,71006.0,71005.0,0.01]
[1717579237421,0.00585685,71006.0,71005.0,0.01]
[1717579237646,0.02285685,71006.0,71005.0,0.011]
[1717579237785,0.02285685,71006.0,71005.0,0.001]
[1717579238209,0.03085685,71006.0,71005.0,0.012]
[1717579240557,0.03085685,71006.0,71005.0,0.002]
[1717579243923,0.03085685,71006.0,71005.0,0.012]
[1717579244919,0.03085685,71006.0,71005.0,0.2531]
[1717579245143,0.025,71006.0,71005.0,0.460635]
[1717579245754,0.025,71006.0,71005.0,0.459635]
[1717579245755,0.016,71006.0,71005.0,0.459635]
[1717579246049,0.016,71006.0,71005.0,0.88572393]
[1717579246843,0.00086,71013.0,71012.0,0.150821]
[1717579247044,0.00086,71013.0,71012.0,0.233221]
[1717579247250,0.00086,71013.0,71012.0,0.398221]
[1717579248359,0.00786,71013.0,71012.0,1.48826593]
[1717579248562,0.00786,71013.0,71012.0,1.24992393]
[1717579248758,0.00786,71013.0,71012.0,1.31662393]
[1717579249018,0.01586,71013.0,71012.0,1.31762393]
[1717579249214,0.00848,71023.0,71022.0,0.376901]
[1717579249535,0.00848,71023.0,71022.0,0.443601]
[1717579249726,0.00848,71023.0,71022.0,0.386901]
[1717579249968,0.00848,71023.0,71022.0,0.453601]
[1717579250151,0.00848,71023.0,71022.0,0.443601]
[1717579251719,0.00948,71023.0,71022.0,0.471601]
[1717579252124,0.00948,71023.0,71022.0,0.481601]
[1717579252356,0.00948,71023.0,71022.0,0.64901993]
[1717579253041,0.00948,71023.0,71022.0,0.65901993]
[1717579253485,0.00948,71023.0,71022.0,0.94062193]
[1717579254842,0.00948,71023.0,71022.0,0.93062193]
[1717579256272,0.00948,71023.0,71022.0,1.22222393]
[1717579258386,0.00948,71023.0,71022.0,1.32222393]
[1717579259461,0.00948,71023.0,71022.0,1.33871338]
[1717579260657,0.00848,71023.0,71022.0,1.32471338]
[1717579262320,0.00848,71023.0,71022.0,1.33871338]
[1717579262532,0.00848,71023.0,71022.0,1.32471338]
[1717579262876,0.00848,71023.0,71022.0,1.33871338]
[1717579263050,0.0071,71027.0,71026.0,0.43238]
[1717579263247,0.0071,71027.0,71026.0,0.68081922]
[1717579264033,0.0071,71027.0,71026.0,0.69081922]
[1717579264388,0.0071,71027.0,71026.0,0.70081922]
[1717579264593,0.0071,71027.0,71026.0,0.69981922]
[1717579264839,0.0071,71027.0,71026.0,0.32853222]
[1717579265064,0.0071,71027.0,71026.0,0.25081329]
[1717579265583,0.01303164,71027.0,71026.0,0.25081329]
[1717579265957,0.0071,71027.0,71026.0,0.236493]
[1717579266164,0.0071,71027.0,71026.0,0.51808]
[1717579266560,0.0071,71027.0,71026.0,0.52808]
[1717579266762,0.0071,71027.0,71026.0,0.51808]
[1717579270205,0.0071,71027.0,71026.0,0.574422]
[1717579270790,0.0071,71027.0,71026.0,0.584422]
[1717579274352,0.0071,71027.0,71026.0,0.73884093]
[1717579274531,0.0071,71027.0,71026.0,0.99524093]
[1717579275274,0.0071,71027.0,71026.0,1.00580179]
[1717579276307,0.0071,71027.0,71026.0,0.98524093]
[1717579277515,0.0071,71027.0,71026.0,0.46025393]
[1717579277941,0.01303233,71027.0,71026.0,0.47081475]
[1717579278347,0.01303233,71027.0,71026.0,0.46025393]
[1717579278903,0.01303233,71027.0,71026.0,0.43725393]
[1717579279107,0.01303233,71027.0,71026.0,0.292835]
[1717579279323,0.0071,71027.0,71026.0,0.292835]
[1717579279529,0.01303105,71027.0,71026.0,0.292835]
[1717579279716,0.01303105,71027.0,71026.0,0.293781]
[1717579279923,0.0071,71027.0,71026.0,0.293781]
[1717579283017,0.0071,71027.0,71026.0,0.303781]
[1717579283220,0.0071,71027.0,71026.0,0.293781]
[1717579287960,0.0071,71027.0,71026.0,0.217081]
[1717579288109,0.2444,71027.0,71026.0,0.293781]
[1717579288305,0.25033439,71027.0,71026.0,0.227081]
[1717579288533,0.25033439,71027.0,71026.0,0.293781]
[1717579290401,0.25033439,71027.0,71026.0,0.019946]
[1717579291548,0.25033439,71027.0,71026.0,0.010946]
[1717579292108,0.25033439,71027.0,71026.0,0.000946]
[1717579292509,0.25033439,71027.0,71026.0,0.002946]
[1717579292764,0.25033439,71027.0,71026.0,0.003946]
[1717579298765,0.25033439,71027.0,71026.0,0.013946]
[1717579301094,0.25033439,71027.0,71026.0,0.003946]
[1717579301269,0.25033439,71027.0,71026.0,0.013946]
[1717579303413,0.25033439,71027.0,71026.0,0.003946]
[1717579306660,0.25033439,71027.0,71026.0,0.013946]
[1717579307490,0.01303439,71027.0,71026.0,0.013946]
[1717579307748,0.0071,71027.0,71026.0,0.013946]
[1717579308101,0.01427879,71027.0,71026.0,0.013946]
[1717579309710,0.01427879,71027.0,71026.0,0.15836493]
[1717579309959,0.01427879,71027.0,71026.0,0.63865793]
[1717579310136,0.0071,71027.0,71026.0,0.63865793]
[1717579310340,0.0071,71027.0,71026.0,0.701883]
[1717579310548,0.0071,71027.0,71026.0,0.63865793]
[1717579311817,0.0071,71027.0,71026.0,0.63765793]
[1717579312106,0.0071,71027.0,71026.0,0.63965793]
[1717579312373,0.0071,71027.0,71026.0,0.64465793]
[1717579312527,0.0071,71027.0,71026.0,0.64065793]
[1717579312726,0.0071,71027.0,71026.0,0.63565793]
[1717579312979,0.0071,71027.0,71026.0,0.63965793]
[1717579313173,0.0071,71027.0,71026.0,0.72994124]
[1717579313519,0.0071,71027.0,71026.0,0.64565793]
[1717579313938,0.0071,71027.0,71026.0,0.63965793]
[1717579314242,0.0071,71027.0,71026.0,0.62965793]
[1717579314850,0.0071,71027.0,71026.0,0.92124493]
[1717579315381,0.0071,71027.0,71026.0,0.93124493]
[1717579315535,0.0071,71027.0,71026.0,1.01552457]
[1717579315774,0.0071,71027.0,71026.0,1.01752457]
[1717579316180,0.0071,71027.0,71026.0,1.02752457]
[1717579317398,0.0071,71027.0,71026.0,1.03752457]
[1717579317741,0.0071,71027.0,71026.0,1.01752457]
[1717579317878,0.0071,71027.0,71026.0,1.02752457]
[1717579319197,0.0071,71027.0,71026.0,1.02752148]
[1717579319403,0.0071,71027.0,71026.0,1.03752148]
[1717579319798,0.0071,71027.0,71026.0,0.95324493]
[1717579321198,0.0071,71027.0,71026.0,0.96981368]
[1717579323225,0.0071,71027.0,71026.0,1.25140068]
[1717579323830,0.0071,71027.0,71026.0,1.24140068]
[1717579324030,0.0071,71027.0,71026.0,1.16470068]
[1717579324230,0.0071,71027.0,71026.0,1.24140068]
[1717579324633,0.0071,71027.0,71026.0,1.34672843]
[1717579324914,0.0071,71027.0,71026.0,0.90190068]
[1717579325138,0.0071,71027.0,71026.0,0.47589475]
[1717579325252,0.1601,71027.0,71026.0,0.18430775]
[1717579325472,0.1601,71027.0,71026.0,0.23644352]
[1717579325851,0.17101491,71027.0,71026.0,0.23644352]
[1717579325978,0.17101491,71027.0,71026.0,0.22644352]
[1717579326184,0.17101491,71027.0,71026.0,0.50803052]
[1717579326407,0.17101491,71027.0,71026.0,0.47589475]
[1717579326576,0.17101491,71027.0,71026.0,0.459326]
[1717579327283,0.17101491,71027.0,71026.0,0.177739]
[1717579331891,0.01801491,71027.0,71026.0,0.177739]
[1717579333511,0.01801491,71027.0,71026.0,0.459326]
[1717579333688,0.0071,71027.0,71026.0,0.526026]
[1717579335750,0.0071,71027.0,71026.0,0.536026]
[1717579336343,0.00749384,71027.0,71026.0,0.57816177]
[1717579336950,0.00749384,71027.0,71026.0,0.56816177]
[1717579337151,0.00749384,71027.0,71026.0,0.50146177]
[1717579337360,0.00749384,71027.0,71026.0,0.56816177]
[1717579340753,0.00749384,71027.0,71026.0,0.7225807]
[1717579340994,0.00749384,71027.0,71026.0,0.9807807]
[1717579342094,0.00749384,71027.0,71026.0,0.9707807]
[1717579342295,0.00749384,71027.0,71026.0,0.92864493]
[1717579342493,0.00749384,71027.0,71026.0,0.76844493]
[1717579342966,0.00749384,71027.0,71026.0,0.69344493]
[1717579344879,0.00749384,71027.0,71026.0,0.38885793]
[1717579345105,0.00749384,71027.0,71026.0,0.244439]
[1717579345328,0.01830688,71027.0,71026.0,0.244439]
[1717579347043,0.01830688,71027.0,71026.0,0.38885793]
[1717579347230,0.01830688,71027.0,71026.0,0.93154493]
[1717579347396,0.00749384,71027.0,71026.0,1.02585951]
[1717579347597,0.00749384,71027.0,71026.0,0.94154493]
[1717579348241,0.00749384,71027.0,71026.0,0.95154493]
[1717579348912,0.00749384,71027.0,71026.0,1.33852515]
[1717579349111,0.00749384,71027.0,71026.0,1.33313193]
[1717579349754,0.00749384,71027.0,71026.0,1.43313193]
[1717579350275,0.00749384,71027.0,71026.0,1.63313193]
[1717579350723,0.00749384,71027.0,71026.0,1.43313193]
[1717579354002,0.00749384,71027.0,71026.0,1.63313193]
[1717579354208,0.00749384,71027.0,71026.0,1.7596038]
[1717579355689,0.00749384,71027.0,71026.0,1.91471893]
[1717579356980,0.00749384,71027.0,71026.0,1.90271893]
[1717579358371,0.00749384,71027.0,71026.0,1.91671893]
[1717579360337,0.00749384,71027.0,71026.0,2.04318815]
[1717579360514,0.00749384,71027.0,71026.0,1.84318815]
[1717579360720,0.00749384,71027.0,71026.0,2.04318815]
[1717579365849,0.00749384,71027.0,71026.0,1.84318815]
[1717579366660,0.00749384,71027.0,71026.0,2.04318815]
[1717579368382,0.00749384,71027.0,71026.0,1.91671893]
[1717579371105,1e-08,71029.0,71028.0,1.315526]
[1717579371316,1e-08,71029.0,71028.0,1.59687527]
[1717579371653,1e-08,71029.0,71028.0,1.67237527]
[1717579372290,1e-08,71029.0,71028.0,1.68637527]
[1717579372521,1e-08,71029.0,71028.0,1.70037527]
[1717579373295,1e-08,71029.0,71028.0,1.68637527]
[1717579373521,1e-08,71029.0,71028.0,1.70037527]
[1717579373696,1e-08,71029.0,71028.0,1.68637527]
[1717579373898,1e-08,71029.0,71028.0,1.70037527]
[1717579374899,1e-08,71029.0,71028.0,1.50037527]
[1717579375104,1e-08,71029.0,71028.0,1.70037527]
[1717579375403,1e-08,71029.0,71028.0,1.95557527]
[1717579375782,0.00086001,71029.0,71028.0,1.95557527]
[1717579376100,0.00086001,71029.0,71028.0,1.85557527]
[1717579376621,0.00086001,71029.0,71028.0,1.84125498]
[1717579376853,0.00086001,71029.0,71028.0,1.94125498]
[1717579377029,0.00086001,71029.0,71028.0,1.84125498]
[1717579377183,0.00086001,71029.0,71028.0,1.94125498]
[1717579381786,1.05874502,71028.0,71027.0,0.42600193]
[1717579382147,1.06955759,71028.0,71027.0,0.42600193]
[1717579382346,1.06955759,71028.0,71027.0,0.49270193]
[1717579382956,1.06955759,71028.0,71027.0,1.19665893]
[1717579383162,1.06955759,71028.0,71027.0,1.21065893]
[1717579383367,1.06955759,71028.0,71027.0,1.22465893]
[1717579383732,1.30155759,71028.0,71027.0,1.15795893]
[1717579383934,1.30155759,71028.0,71027.0,1.47408174]
[1717579384697,1.30155759,71028.0,71027.0,1.46008174]
[1717579384896,1.30155759,71028.0,71027.0,1.33365893]
[1717579385308,1.30155759,71028.0,71027.0,1.46008174]
[1717579385504,1.30255759,71028.0,71027.0,1.47640203]
[1717579386019,1.30155759,71028.0,71027.0,1.47440203]
[1717579386255,1.30255759,71028.0,71027.0,1.47640203]
[1717579386990,1.30255759,71028.0,71027.0,1.46208174]
[1717579388042,1.30255759,71028.0,71027.0,1.39538174]
[1717579388241,1.30255759,71028.0,71027.0,1.46208174]
[1717579388445,1.30255759,71028.0,71027.0,1.33565893]
[1717579389254,1.30255759,71028.0,71027.0,1.18055816]
[1717579389434,1.30255759,71028.0,71027.0,1.05407593]
[1717579389638,1.30255759,71028.0,71027.0,1.18057511]
[1717579390394,1.30255759,71028.0,71027.0,1.05407593]
[1717579390613,1.30255759,71028.0,71027.0,0.256791]
[1717579390814,1.30255759,71028.0,71027.0,0.156791]
[1717579390971,1.52255759,71028.0,71027.0,0.26223566]
[1717579391206,1.52255759,71028.0,71027.0,0.24114818]
[1717579391413,1.52255759,71028.0,71027.0,0.25170933]
[1717579391613,1.52155759,71028.0,71027.0,0.24970933]
[1717579391815,1.52255759,71028.0,71027.0,0.26370933]
[1717579392428,1.52155759,71028.0,71027.0,0.014]
[1717579392628,1.52255759,71028.0,71027.0,0.027]
[1717579392833,1.52255759,71028.0,71027.0,0.06918417]
[1717579393594,1.52255759,71028.0,71027.0,0.05517849]